{"text_format":"3","workbook":"xlsx","n_sheets":1,"sheets":["הוצאות פתיחה"],"not_rendered":{"defined_names":1},"read":"whole","date_system":"1900"}

{"sheet":"הוצאות פתיחה","index":0,"n_rows":120,"n_cols":4,"rows_kept":120,"merged":[[1,1,1,3],[10,1,10,3],[17,1,17,3],[25,1,25,3],[34,1,34,3],[42,1,42,3],[50,1,50,3],[55,1,55,3],[57,1,57,3],[59,1,59,3],[60,1,60,3],[69,1,69,3],[76,1,76,3],[81,1,81,3],[82,1,82,3],[90,1,90,3],[102,1,102,3],[110,1,110,3],[115,1,115,3]]}
["הוצאות פתיחה",null,null,"שם החברה, בע\"מ"]
[null,"הערה לפני השימוש בגליון עבודה זה\nכמעט כל מי שאי פעם פתח עסק העריך שהעלויות יהיו נמוכות יותר והסתכן בפתיחה של עסק עם הפרשת הון בלתי מספקת. המפתח להימנע מבעיה זו הוא לאמץ גישה קפדנית למחקר ולתכנון שלך. תבנית הוצאות פתיחה שלנו תנחה אותך לאורך התהליך.\n\nהתחל בהערכת ההוצאות\nכמה יעלה לך לפתוח את העסק ולהתחיל בעבודה? המפתח לדיוק כאן הוא תשומת לב לפרטים הקטנים. עבור כל קטגוריה של הוצאות, הכן רשימה של כל הפריטים שעליך לרכוש. רשימה זו תכלול נכסים מוחשיים (לדוגמה, ציוד, מלאי) ושירותים (לדוגמה, שיפוצים, ביטוח). לאחר מכן החלט היכן לרכוש את הסחורות או השירותים הללו. בדוק יותר מספק אחד, כלומר: השווה בין חלופות. אל תבחן את המחיר בלבד; חשוב גם לבחון את תנאי התשלום, המשלוח, המהימנות והשירות. "]
[]
[null,"הוצאות פתיחה"]
[null,"בניינים/נדל\"ן"," ","סכום"]
[null,"רכישה",null,{"v":0,"d":"₪ 0.00"}]
[null,"בנייה",null,{"v":0,"d":"₪ 0.00"}]
[null,"שיפוצים",null,{"v":0,"d":"₪ 0.00"}]
[null,"אחר",null,{"v":0,"d":"₪ 0.00"}]
[null,"סה\"כ",null,{"$f":"SUBTOTAL(109,מקרקעין[סכום])","v":{"v":0,"d":"₪ 0.00"}}]
[]
[null,"שיפורים במושכר"," ","סכום"]
[null,"פריט 1",null,{"v":0,"d":"₪ 0.00"}]
[null,"פריט 2",null,{"v":0,"d":"₪ 0.00"}]
[null,"פריט 3",null,{"v":0,"d":"₪ 0.00"}]
[null,"פריט 4",null,{"v":0,"d":"₪ 0.00"}]
[null,"סה\"כ",null,{"$f":"SUBTOTAL(109,שיפורים[סכום])","v":{"v":0,"d":"₪ 0.00"}}]
[]
[null,"רשימת ציוד הוני"," ","סכום"]
[null,"ריהוט",null,{"v":0,"d":"₪ 0.00"}]
[null,"ציוד",null,{"v":0,"d":"₪ 0.00"}]
[null,"אביזרים",null,{"v":0,"d":"₪ 0.00"}]
[null,"מכונות",null,{"v":0,"d":"₪ 0.00"}]
[null,"אחר",null,{"v":0,"d":"₪ 0.00"}]
[null,"סה\"כ",null,{"$f":"SUBTOTAL(109,הון[סכום])","v":{"v":0,"d":"₪ 0.00"}}]
[]
[null,"הוצאות מיקום והנהלה"," ","סכום"]
[null,"שכירות",null,{"v":0,"d":"₪ 0.00"}]
[null,"פיקדונות לחברות שירותים",null,{"v":0,"d":"₪ 0.00"}]
[null,"תשלומים למטרות משפטיות וחשבונאיות",null,{"v":0,"d":"₪ 0.00"}]
[null,"ביטוח המשולם מראש",null,{"v":0,"d":"₪ 0.00"}]
[null,"משכורות טרום-פתיחה ",null,{"v":0,"d":"₪ 0.00"}]
[null,"אחר",null,{"v":0,"d":"₪ 0.00"}]
[null,"סה\"כ",null,{"$f":"SUBTOTAL(109,הוצאות_ניהול[סכום])","v":{"v":0,"d":"₪ 0.00"}}]
[]
[null,"מלאי פתיחה"," ","סכום"]
[null,"קטגוריה 1",null,{"v":0,"d":"₪ 0.00"}]
[null,"קטגוריה 2",null,{"v":0,"d":"₪ 0.00"}]
[null,"קטגוריה 3",null,{"v":0,"d":"₪ 0.00"}]
[null,"קטגוריה 4",null,{"v":0,"d":"₪ 0.00"}]
[null,"קטגוריה 5",null,{"v":0,"d":"₪ 0.00"}]
[null,"סה\"כ",null,{"$f":"SUBTOTAL(109,מלאי_פתיחה[סכום])","v":{"v":0,"d":"₪ 0.00"}}]
[]
[null,"הוצאות פרסום וקידום מכירות"," ","סכום"]
[null,"פרסום",null,{"v":0,"d":"₪ 0.00"}]
[null,"שילוט",null,{"v":0,"d":"₪ 0.00"}]
[null,"הדפסה",null,{"v":0,"d":"₪ 0.00"}]
[null,"נסיעות/בידור",null,{"v":0,"d":"₪ 0.00"}]
[null,"אחר/קטגוריות נוספות",null,{"v":0,"d":"₪ 0.00"}]
[null,"סה\"כ",null,{"$f":"SUBTOTAL(109,הוצאות_פרסום[סכום])","v":{"v":0,"d":"₪ 0.00"}}]
[]
[null,"הוצאות אחרות"," ","סכום"]
[null,"הוצאות אחרות 1",null,{"v":0,"d":"₪ 0.00"}]
[null,"הוצאות אחרות 2",null,{"v":0,"d":"₪ 0.00"}]
[null,"סה\"כ",null,{"$f":"SUBTOTAL(109,הוצאות_אחרות[סכום])","v":{"v":0,"d":"₪ 0.00"}}]
[]
[null,"מלאי לאירועים בלתי צפויים",null,{"v":0,"d":"₪ 0.00"}]
[]
[null,"הון חוזר ",null,{"v":0,"d":"₪ 0.00"}]
[]
[null,"הוסף מלאי לאירועים בלתי צפויים\nהקפד להסביר בתיאור כיצד החלטת איזה סכום אתה שומר לאירועים בלתי צפויים. \n\nקבע מה תזרים המזומנים שלך\nלא ניתן לפתוח עסק עם חשבון בנק ריק. אתה זקוק למזומנים נזילים כדי לעמוד בהוצאות לאחר שהעסק מתחיל לפעול. בסופו של דבר, עליך להכין תחזית של תזרים מזומנים ל- 12 חודשים. כאן תציג את ההערכה שלך לגבי סכום ההון החוזר. בשלב זה, ניתן להשאיר את השורה ריקה או למלא הערכה גסה. לאחר שהשלמת את תזרים המזומנים, תוכל לשוב ולהזין את הסכום שבחנת בקפידה.\n\nהזן את מקורות ההון שלך\nכעת, לאחר שהערכת את סכום ההון הדרוש כדי לפתוח את העסק, עליך להפנות את תשומת הלב לחלק העליון של גליון עבודה זה. הזן את הסכומים שתביא בעצמך, את הסכומים שתקבל מהשותפים או מהמשקיעים שלך ואת הסכומים שתקבל באמצעות הלוואות."]
[]
[null,"מקורות ההון"]
[null,"השקעת הבעלים (שם ו- % בעלות)"," ","סכום"]
[null,"שם ובעלות באחוזים",null,{"v":0,"d":"₪ 0.00"}]
[null,"משקיעים אחרים",null,{"v":0,"d":"₪ 0.00"}]
[null,"משקיעים אחרים",null,{"v":0,"d":"₪ 0.00"}]
[null,"משקיעים אחרים",null,{"v":0,"d":"₪ 0.00"}]
[null,"סה\"כ",null,{"$f":"SUBTOTAL(109,השקעות_בעלים[סכום])","v":{"v":0,"d":"₪ 0.00"}}]
[]
[null,"הלוואות בנק"," ","סכום"]
[null,"בנק 1",null,{"v":0,"d":"₪ 0.00"}]
[null,"בנק 2",null,{"v":0,"d":"₪ 0.00"}]
[null,"בנק 3",null,{"v":0,"d":"₪ 0.00"}]
[null,"בנק 4",null,{"v":0,"d":"₪ 0.00"}]
[null,"סה\"כ",null,{"$f":"SUBTOTAL(109,הלוואות_מהבנק[סכום])","v":{"v":0,"d":"₪ 0.00"}}]
[]
[null,"הלוואות אחרות"," ","סכום"]
[null,"מקור 1",null,{"v":0,"d":"₪ 0.00"}]
[null,"מקור 2",null,{"v":0,"d":"₪ 0.00"}]
[null,"סה\"כ",null,{"$f":"SUBTOTAL(109,הלוואות_אחרות[סכום])","v":{"v":0,"d":"₪ 0.00"}}]
[]
[null,"ספק הוכחה לביטחונות\nאם בכוונתך להשתמש בתוכנית זו כדי לתמוך בבקשת הלוואה מבנק, השתמש בסעיף שליד החלק התחתון כדי להסביר אילו נכסים מוצעים כביטחונות להבטחת ההלוואה ולהעריך את הערך של פריטים אלה. התכונן להציג הוכחה כלשהי לגבי ההערכות של ערכי הביטחונות."]
[]
[null,"דוח סיכום"]
[null,"מקור ההון"," ","סכומים כוללים"]
[null,"השקעת הבעלים והשקעות אחרות",null,{"$f":"השקעות_בעלים[[#Totals],[סכום]]","v":{"v":0,"d":"₪ 0.00"}}]
[null,"הלוואות בנק",null,{"$f":"הלוואות_מהבנק[[#Totals],[סכום]]","v":{"v":0,"d":"₪ 0.00"}}]
[null,"הלוואות אחרות",null,{"$f":"הלוואות_אחרות[[#Totals],[סכום]]","v":{"v":0,"d":"₪ 0.00"}}]
[null,"סה\"כ",null,{"$f":"SUBTOTAL(109,מקורות_ההון[סכומים כוללים])","v":{"v":0,"d":"₪ 0.00"}}]
[]
[null,"הוצאות פתיחה"," ","סכומים כוללים"]
[null,"בניינים/נדל\"ן",null,{"$f":"מקרקעין[[#Totals],[סכום]]","v":{"v":0,"d":"₪ 0.00"}}]
[null,"שיפורים במושכר",null,{"$f":"שיפורים[[#Totals],[סכום]]","v":{"v":0,"d":"₪ 0.00"}}]
[null,"ציוד הוני",null,{"$f":"הון[[#Totals],[סכום]]","v":{"v":0,"d":"₪ 0.00"}}]
[null,"הוצאות מיקום/הנהלה",null,{"$f":"הוצאות_ניהול[[#Totals],[סכום]]","v":{"v":0,"d":"₪ 0.00"}}]
[null,"מלאי פתיחה",null,{"$f":"מלאי_פתיחה[[#Totals],[סכום]]","v":{"v":0,"d":"₪ 0.00"}}]
[null,"הוצאות פרסום/קידום מכירות",null,{"$f":"הוצאות_פרסום[[#Totals],[סכום]]","v":{"v":0,"d":"₪ 0.00"}}]
[null,"הוצאות אחרות",null,{"$f":"הוצאות_אחרות[[#Totals],[סכום]]","v":{"v":0,"d":"₪ 0.00"}}]
[null,"כספים לאירועים בלתי צפויים",null,{"$f":"SUM('הוצאות פתיחה'!$C$57)","v":{"v":0,"d":"₪ 0.00"}}]
[null,"הון חוזר",null,{"$f":"SUM('הוצאות פתיחה'!$C$59)","v":{"v":0,"d":"₪ 0.00"}}]
[null,"סה\"כ",null,{"$f":"SUBTOTAL(109,הוצאות_פתיחה[סכומים כוללים])","v":{"v":0,"d":"₪ 0.00"}}]
[]
[null,"ערבונות וביטחונות להצעת ההלוואה"]
[null,"ביטחונות להלוואות","תיאור","ערך"]
[null,"נדל\"ן",null,{"v":0,"d":"₪ 0.00"}]
[null,"ביטחונות אחרים",null,{"v":0,"d":"₪ 0.00"}]
[null,"ביטחונות אחרים",null,{"v":0,"d":"₪ 0.00"}]
[null,"ביטחונות אחרים",null,{"v":0,"d":"₪ 0.00"}]
[null,"סה\"כ",null,{"$f":"SUBTOTAL(109,ביטחונות[ערך])","v":{"v":0,"d":"₪ 0.00"}}]
[]
[null,"בעלים"," ","  "]
[null,"שמך כאן"]
[null,"בעלים אחרים"]
[null,"בעלים אחרים"]
[]
[null,"ערבים להלוואה (מלבד הבעלים)"," ","  "]
[null,"ערב להלוואה 1"]
[null,"ערב להלוואה 2"]
[null,"ערב להלוואה 3"]